Cogmind - Beta 14 @@@ ROGUE MODE // 2024.11.23 @ 14:51:49 Player: akira Result: Destroyed by Y-54 Guardian with Flak Gun Performance ------------- Evolutions (3) 1500 Regions Visited (10) 2000 Robots Destroyed (101) 505 Value Destroyed (3525) 3525 Prototype IDs (7) 140 Alien Tech Used (0) 0 Bonus (950) 950 TOTAL SCORE: 8620 Bonus ------- High Alert Combat Kills 229 Follower Combat Kills 21 Entered Garrisons 200 Used RIF Installer 500 Cogmind --------- Core Integrity 0/700 Matter 295/300 Energy 100/100 System Corruption 6% Temperature Cool (18) Movement Flying (35) Location -7/Factory Parts ------- > --- POWER (1) -------- (None) > --- PROPULSION (4) --- Cooled VTOL Module > --- UTILITY (6) ------ Improved Signal Interpreter Salvage Targeting Computer Core Analyzer Hacking Suite Hacking Suite System Shield > --- WEAPON (2) ------- (None) > --- INVENTORY (5) ---- Hacking Suite System Shield Relay Coupler [Sentry] (14) Peak State ------------ > --- POWER ------------ Micro Nuclear Core > --- PROPULSION ------- Improved Cesium-ion Thruster Improved Cesium-ion Thruster Improved Cesium-ion Thruster Improved Cesium-ion Thruster > --- UTILITY ---------- Large Storage Unit Melee Analysis Suite Improved Melee Analysis Suite Core Analyzer Hacking Suite Authchip [R/NC] > --- WEAPON ----------- Katana Katana > --- INVENTORY -------- Deuterium Engine Micro Nuclear Core Light Treads Light Treads Light Treads Aluminum Leg Huge Storage Unit Hacking Suite Authchip [R/NC] Authchip [R/Combat] Enhanced Autogun Flak Gun Improved Datajack Remote Datajack Katana [Rating: 53] Favorites ----------- Power Micro Nuclear Core Engine Light Ion Engine Power Core Micro Nuclear Core Propulsion Light Treads Treads Light Treads Leg Aluminum Leg Flight Unit Cooled VTOL Module Utility Hacking Suite Device ECM Suite Storage Large Storage Unit Processor Core Analyzer Hackware Hacking Suite Protection Improved Light Armor Plating Weapon Assault Rifle Energy Gun Particle Gun Ballistic Gun Assault Rifle Launcher Mini Grenade Launcher Special Weapon Remote Datajack Impact Weapon Maul Slashing Weapon Katana Special Melee Weapon Improved Datajack Build | -11 -10 -10 -10 -9 -8 -8 -8 -7 -7 -7 ------- Run | Yrd Mat Min Exi Min Mat Gar Mat Fac Was Fac Slots Evolved 6 | . . . . . 4 . . 2 . . Power . | . . . . . . . . . . . Propulsion 2 | . . . . . 2 . . . . . Utility 4 | . . . . . 2 . . 2 . . Weapon . | . . . . . . . . . . . Parts Attached 135 | 5 6 1 . 4 27 28 9 41 . 14 Power 18 | 1 1 1 . 1 2 4 1 6 . 1 Engine 8 | 1 1 1 . 1 1 1 1 1 . . Core 10 | . . . . . 1 3 . 5 . 1 Reactor . | . . . . . . . . . . . Propulsion 53 | 2 . . . 2 14 12 3 18 . 2 Treads 17 | 2 . . . . 9 1 . 5 . . Leg 21 | . . . . 2 5 11 3 . . . Wheel . | . . . . . . . . . . . Hover . | . . . . . . . . . . . Flight 15 | . . . . . . . . 13 . 2 Utility 29 | 1 2 . . . 6 5 2 9 . 4 Device 3 | . 1 . . . . 1 . . . 1 Storage 5 | 1 1 . . . 2 . . 1 . . Processor 5 | . . . . . 1 . . 3 . 1 Hackware 9 | . . . . . 1 . 2 4 . 2 Protection 7 | . . . . . 2 4 . 1 . . Artifact . | . . . . . . . . . . . Weapon 35 | 1 3 . . 1 5 7 3 8 . 7 Energy Gun 1 | . . . . . 1 . . . . . Energy Cannon . | . . . . . . . . . . . Ballistic Gun 9 | 1 3 . . . 1 3 . 1 . . Ballistic Cannon . | . . . . . . . . . . . Launcher 3 | . . . . . . . . . . 3 Special Weapon 3 | . . . . . . . 1 1 . 1 Impact Weapon 2 | . . . . . . . . 2 . . Slashing Weapon 16 | . . . . 1 3 4 1 4 . 3 Piercing Weapon . | . . . . . . . . . . . Special Melee Weapon 1 | . . . . . . . 1 . . . Unidentified Prototypes 3 | . . . . . . . . 2 . 1 Parts Lost 43 | . . . . 4 5 12 4 9 . 9 Power 4 | . . . . 1 . 1 . 1 . 1 Propulsion 16 | . . . . 2 2 2 3 4 . 3 Utility 10 | . . . . . 1 5 1 1 . 2 Weapon 13 | . . . . 1 2 4 . 3 . 3 Highest Loss Streak 8 | . . . . 4 3 8 3 3 . 5 To Critical Strikes . | . . . . . . . . . . . Average Slot Usage (%) 95 | . 91 100 100 76 86 97 93 95 92 93 Engine 5 | . 14 14 14 12 1 1 . . . . Core 4 | . . . . . 7 7 8 5 7 7 Treads 15 | . 28 28 28 7 21 13 . 6 . . Leg 6 | . . . . 8 9 22 32 . . . Flight 7 | . . . . . . . . 20 30 28 Device 4 | . 7 14 14 14 2 1 . . . . Storage 8 | . 14 14 14 14 9 9 9 2 . . Processor 7 | . . . . . . 9 9 16 15 15 Hackware 10 | . . . . . 5 6 12 25 30 25 Protection 3 | . . . . . 12 9 3 . . . Ballistic Gun 9 | . 25 28 28 7 . 1 . . . . Slashing Weapon 7 | . . . . 12 16 14 13 9 7 6 Peak Build Rating 53 | 5 9 9 9 12 29 30 30 53 48 52 Average Rating 26 | 4 6 9 9 9 23 25 28 45 48 48 On Entrance 19 | . 5 9 9 9 9 28 26 26 48 48 Naked Turns . | . . . . . . . . . . . Heaviest Build 96 | 12 31 31 29 29 96 36 34 30 10 14 Greatest Support 82 | 40 40 40 40 40 82 82 48 82 20 28 Greatest Overweight (x) 2 | . . . . 2 2 . 1 2 . 1 Average Overweight (x) . | . . . . 1 . . . . . . Largest Inventory Capacity 25 | 8 15 15 15 15 25 15 15 25 5 5 Average Capacity 12 | 7 11 15 15 15 15 15 15 8 5 5 Most Carried 15 | 5 15 15 15 15 15 15 15 15 5 5 Average Carried 10 | 3 9 14 15 13 12 13 13 6 5 4 Final Capacity 15 | 8 15 15 15 15 15 15 15 5 5 5 Final Carried 15 | 4 15 15 15 12 10 13 13 5 5 3 Class Distribution -------------------- 38% | Mutant 26% | Hacker-Sprinter 17% | Scavenger-Gladiator 16% | Scavenger-Mutant Dominant Class ---------------- Mutant | -10/Materials Mutant | -10/Mines Mutant | -10/Exiles Mutant | -9/Mines Scavenger-Mutant | -8/Materials Scavenger-Gladiator | -8/Garrison Scavenger-Gladiator | -8/Materials Hacker-Sprinter | -7/Factory Hacker-Sprinter | -7/Waste Hacker-Sprinter | -7/Factory Resources | -11 -10 -10 -10 -9 -8 -8 -8 -7 -7 -7 ----------- Run | Yrd Mat Min Exi Min Mat Gar Mat Fac Was Fac Matter Collected 1917 | 227 229 85 41 42 219 351 65 348 . 310 Remotely . | . . . . . . . . . . . Salvage Created 3955 | . 222 73 50 118 600 1123 228 990 . 551 Parts 247 | . 20 5 . 6 34 67 11 66 . 38 Haulers Intercepted 4 | . . . . . . . . 3 . 1 Recyclers Shooed . | . . . . . . . . . . . Parts Field Recycled . | . . . . . . . . . . . Retrieved Matter . | . . . . . . . . . . . Parts Self-Destructed . | . . . . . . . . . . . Prevented . | . . . . . . . . . . . Kills | -11 -10 -10 -10 -9 -8 -8 -8 -7 -7 -7 ------- Run | Yrd Mat Min Exi Min Mat Gar Mat Fac Was Fac Combat Hostiles Destroyed 77 | . 6 4 1 2 13 24 4 13 . 10 Melee 56 | . . . . 2 12 20 4 13 . 5 Guns 16 | . 6 4 1 . 1 4 . . . . AOE 5 | . . . . . . . . . . 5 Classes Destroyed 14 | . 3 . . 2 3 2 . 2 . 2 Worker 2 | . . . . 1 . . . 1 . . Builder 2 | . . . . . . . . 1 . 1 Hauler 4 | . . . . . . . . 3 . 1 Recycler 1 | . . . . . . . . . . 1 Mechanic 1 | . . . . . . . . . . 1 Operator 6 | . 1 . . . . . 1 3 . 1 Watcher 8 | . . . . . 1 . . 3 . 4 Swarmer 19 | . 3 4 . . 2 2 . . . 8 Grunt 32 | . 3 . 1 1 3 16 3 5 . . Brawler 3 | . . . . . 2 1 . . . . Duelist 4 | . . . . 1 2 1 . . . . Sentry 9 | . . . . . 4 1 1 3 . . Hunter 3 | . . . . . . 1 . 2 . . Programmer 7 | . . . . . . 2 . 3 . 2 Best Kill Streak 5 | . 3 2 1 3 2 4 2 3 . 5 Combat Bots Only 4 | . 3 2 1 2 2 4 2 3 . 3 Max Kills in Single Turn 3 | . 1 1 1 1 1 1 1 1 . 3 Gunslinging . | . . . . . . . . . . . Exploded 2 | . . . . . . . . . . 2 Melee 1 | . . . . 1 1 1 1 1 . 1 Uniques/NPCs Destroyed . | . . . . . . . . . . . Combat | -11 -10 -10 -10 -9 -8 -8 -8 -7 -7 -7 -------- Run | Yrd Mat Min Exi Min Mat Gar Mat Fac Was Fac Hostile Shots Fired 677 | . 41 23 . 22 54 178 37 142 . 180 Missed 225 | . 9 3 . 4 14 40 11 58 . 86 Damage Taken 6228 | . 345 170 . 350 734 2259 399 845 . 1126 Core 1445 | . 57 40 . 121 147 342 33 174 . 531 Absorbed by Shields . | . . . . . . . . . . . Redirected to Shielding 105 | . . . . . . 105 . . . . Regen/Repaired (Parts) 17 | . . . . . . . . 17 . . Core Remaining (%) 39 | 100 . . . 12 . . 5 . . . Volleys Fired 96 | . 30 10 2 5 10 31 . . . 8 Largest 2 | . 2 2 2 1 1 1 . . . 1 Hottest 65 | . 40 40 40 20 65 23 . . . 30 Shots Fired 136 | . 58 20 4 5 10 31 . . . 8 Gun 128 | . 58 20 4 5 10 31 . . . . Cannon . | . . . . . . . . . . . Launcher 8 | . . . . . . . . . . 8 Special . | . . . . . . . . . . . Kinetic 126 | . 58 20 4 5 8 31 . . . . Thermal 2 | . . . . . 2 . . . . . Explosive 8 | . . . . . . . . . . 8 Electromagnetic . | . . . . . . . . . . . Robot Hit Streak 21 | . 7 5 6 1 3 20 . . . 21 Robot Miss Streak 5 | . 5 3 . 1 1 4 . . . 2 Penetration Max . | . . . . . . . . . . . Secondary Targets 2 | . 1 1 . . . . . . . . Max Gunslinging Chain 1 | . 1 1 . . . . . . . . Shots Hit Robots 259 | . 37 9 4 7 37 71 17 44 . 33 Core Hits 125 | . 12 4 1 3 19 31 5 24 . 26 Critical Kills . | . . . . . . . . . . . Critical Parts Destroyed . | . . . . . . . . . . . Critical Strikes 16 | . . . . . 2 6 3 4 . 1 Burn 1 | . . . . . 1 . . . . . Sever 15 | . . . . . 1 6 3 4 . 1 Melee Attacks 274 | . . . . 7 39 68 27 75 . 58 Impact 4 | . . . . . . . . 4 . . Slashing 268 | . . . . 7 39 68 25 71 . 58 Piercing . | . . . . . . . . . . . Sneak Attacks 14 | . . . . 1 2 . 1 7 . 3 Combat Hostiles 2 | . . . . . . . . 2 . . Follow-up Attacks 6 | . . . . . 2 4 . . . . Damage Inflicted 8699 | . 418 120 53 266 1037 1928 603 2047 . 2227 Guns 1007 | . 418 118 53 48 105 265 . . . . Cannons . | . . . . . . . . . . . Explosions 753 | . . . . . . . . . . 753 Melee 6937 | . . . . 218 932 1663 603 2047 . 1474 Ramming 2 | . . 2 . . . . . . . . Kinetic 977 | . 418 118 53 48 75 265 . . . . Thermal 276 | . . . . . 30 . . . . 246 Explosive 507 | . . . . . . . . . . 507 Electromagnetic . | . . . . . . . . . . . Impact 121 | . . . . . . . . 121 . . Slashing 6816 | . . . . 218 932 1663 603 1926 . 1474 Piercing . | . . . . . . . . . . . Highest Corruption 6 | . 1 1 1 1 . 3 3 3 3 6 Average Corruption 1 | . 1 1 1 1 . 2 3 2 3 4 Corruption Purged . | . . . . . . . . . . . Corruption Blocked . | . . . . . . . . . . . Effects 71 | . 2 9 9 . . 3 7 21 1 19 Message Errors 14 | . 1 2 2 . . 1 2 3 . 3 Matter Fused 21 | . . 2 5 . . 1 1 4 . 8 Heat Flow Errors 7 | . . 1 . . . 1 . 2 . 3 Energy Discharges 9 | . . 1 . . . . . 6 . 2 Parts Rejected 3 | . . . . . . . 2 . . 1 Parts Fused 2 | . . . . . . . 1 1 . . Data Loss (minor) 7 | . 1 1 2 . . . . 1 1 1 Data Loss (major) 4 | . . 1 . . . . 1 2 . . Alerts 4 | . . 1 . . . . . 2 . 1 Overload Shots . | . . . . . . . . . . . Overflow Damage 441 | . . . . 36 17 100 20 62 . 206 Projectiles . | . . . . . . . . . . . Explosions 91 | . . . . . . . . . . 91 Melee 350 | . . . . 36 17 100 20 62 . 115 Knockbacks . | . . . . . . . . . . . Impact . | . . . . . . . . . . . Kinetic . | . . . . . . . . . . . Secondary . | . . . . . . . . . . . Self-Inflicted Damage 101 | . . . . . . . . . . 101 Shots 3 | . . . . . . . . . . 3 Rammed 1 | . . 1 . . . . . . . . Targets Rammed 1 | . . 1 . . . . . . . . Kicked . | . . . . . . . . . . . Crushed . | . . . . . . . . . . . Highest Temperature 398 | . 18 84 . . 51 106 7 398 . 237 Average Temperature 105 | . 10 47 . . 19 39 5 144 . 91 Received Heat Transfer 1638 | . 147 . . 66 243 702 234 156 . 90 Effects 3 | . . . . . . . . 3 . . Shutdowns 1 | . . . . . . . . 1 . . Interference 2 | . . . . . . . . 2 . . Siege Activations . | . . . . . . . . . . . Robots Corrupted 1 | . . . . . . . . 1 . . Combat Hostiles . | . . . . . . . . . . . Parts Fried 2 | . . . . . . . . 2 . . Impact Corruptions 1 | . . . . . . . . 1 . . Robots Melted . | . . . . . . . . . . . Combat Hostiles . | . . . . . . . . . . . Parts Melted 1 | . . . . . . . . 1 . . Heat Transferred 298 | . . . . . 148 . . . . 150 Parts Sabotaged . | . . . . . . . . . . . Parts Stolen . | . . . . . . . . . . . Parts Stripped . | . . . . . . . . . . . Power Chain Reactions . | . . . . . . . . . . . Alert | -11 -10 -10 -10 -9 -8 -8 -8 -7 -7 -7 ------- Run | Yrd Mat Min Exi Min Mat Gar Mat Fac Was Fac Peak Influence 641 | . 231 96 . 61 274 641 501 613 211 567 Initial 312 | . . 22 . . 23 82 312 224 211 147 Average 211 | . 96 36 . 31 126 412 362 209 211 320 Maximum Alert Level 2 | . 1 . . . 1 2 2 2 1 2 Low Security (%) 57 | 100 93 100 . 100 86 22 . 50 . 30 Level 1 22 | . 6 . . . 13 16 73 34 100 28 Level 2 19 | . . . . . . 60 26 15 . 40 Level 3 . | . . . . . . . . . . . Level 4 . | . . . . . . . . . . . Level 5 . | . . . . . . . . . . . High Security . | . . . . . . . . . . . Max Security . | . . . . . . . . . . . Squads Dispatched 21 | . 2 . . . 4 . 1 9 . 5 Investigation 9 | . 2 . . . 1 . . 6 . . Extermination 5 | . . . . . . . . 2 . 3 Reinforcement 4 | . . . . . . . 1 1 . 2 Assault . | . . . . . . . . . . . Garrison 3 | . . . . . 3 . . . . . Intercept . | . . . . . . . . . . . Searches Triggered . | . . . . . . . . . . . Construction Impeded . | . . . . . . . . . . . Haulers Reinforced 1 | . . . . . . . . . . 1 Active Scanning Responses . | . . . . . . . . . . . Cargo Convoy Interrupts . | . . . . . . . . . . . Stealth | -11 -10 -10 -10 -9 -8 -8 -8 -7 -7 -7 --------- Run | Yrd Mat Min Exi Min Mat Gar Mat Fac Was Fac Distress Signals 4 | . . . . . 2 . 1 . . 1 Communications Jammed . | . . . . . . . . . . . Distress Signals . | . . . . . . . . . . . Times Spotted 160 | . 13 11 . 2 25 27 14 42 . 26 Peak Tracking Total 6 | . 3 3 . 2 4 4 6 6 . 6 Tactical Retreats 27 | . 3 3 . . 1 4 3 7 . 6 Traps | -11 -10 -10 -10 -9 -8 -8 -8 -7 -7 -7 ------- Run | Yrd Mat Min Exi Min Mat Gar Mat Fac Was Fac Traps Triggered 7 | . 1 . . . 2 2 . 2 . . Indirectly . | . . . . . . . . . . . Trap Hack Attempts . | . . . . . . . . . . . Triggered . | . . . . . . . . . . . Disarmed . | . . . . . . . . . . . Reprogrammed . | . . . . . . . . . . . Reused . | . . . . . . . . . . . Traps Extracted . | . . . . . . . . . . . Installed . | . . . . . . . . . . . Triggered . | . . . . . . . . . . . Machines | -11 -10 -10 -10 -9 -8 -8 -8 -7 -7 -7 ---------- Run | Yrd Mat Min Exi Min Mat Gar Mat Fac Was Fac Machines Disabled 6 | . . 1 . . . . . . . 5 Max in Single Turn 5 | . . . . . . . . . . 5 Garrison Access 2 | . . . . . . . . 1 . 1 Machines Repaired . | . . . . . . . . . . . Machines Dismantled . | . . . . . . . . . . . Machines Sabotaged . | . . . . . . . . . . . Overloaded Fab Kills . | . . . . . . . . . . . Hacking | -11 -10 -10 -10 -9 -8 -8 -8 -7 -7 -7 --------- Run | Yrd Mat Min Exi Min Mat Gar Mat Fac Was Fac Machines Accessed 32 | . 3 1 3 . 4 2 1 16 . 2 Terminals 20 | . 3 1 . . 3 2 1 9 . 1 Fabricators 4 | . . . . . . . . 4 . . Repair Stations 1 | . . . . . . . . 1 . . Recycling Units . | . . . . . . . . . . . Scanalyzers . | . . . . . . . . . . . Garrison Access 4 | . . . . . 1 . . 2 . 1 Total Hacks 77 | . 12 2 21 . 6 2 1 29 . 4 Successful 54 | . 3 2 21 . 3 1 1 19 . 4 Failed 22 | . 9 . . . 2 1 . 10 . . Catastrophic 4 | . 2 . . . . . . 2 . . Database Lockouts 1 | . . . . . 1 . . . . . Manual 27 | . 12 1 . . 5 . 1 7 . 1 Terminals 39 | . 12 2 . . 5 2 1 14 . 3 Fabricators 10 | . . . . . . . . 10 . . Repair Stations 2 | . . . . . . . . 2 . . Recycling Units . | . . . . . . . . . . . Scanalyzers . | . . . . . . . . . . . Garrison Access 5 | . . . . . 1 . . 3 . 1 Terminal Hacks 39 | . 3 2 21 . 2 1 1 6 . 3 Record 21 | . . . 21 . . . . . . . Part Schematic 1 | . . . . . . . . 1 . . Robot Analysis 4 | . 3 . . . 1 . . . . . Prototype ID Bank 1 | . . . . . 1 . . . . . Open DSF 4 | . . . . . . . . 4 . . Level Access Points 1 | . . . . . . . 1 . . . Branch Access Points 1 | . . 1 . . . . . . . . Alert Level 1 | . . . . . . . . . . 1 Unreport Threat 2 | . . . . . . . . 1 . 1 Hauler Manifests 1 | . . . . . . . . . . 1 Zone Layout 1 | . . 1 . . . . . . . . Garrison Registry 1 | . . . . . . 1 . . . . Fabricator Hacks 8 | . . . . . . . . 8 . . Load Schematic 4 | . . . . . . . . 4 . . Build 4 | . . . . . . . . 4 . . Repair Station Hacks 2 | . . . . . . . . 2 . . Scan Component 1 | . . . . . . . . 1 . . Repair 1 | . . . . . . . . 1 . . Recycling Unit Hacks . | . . . . . . . . . . . Scanalyzer . | . . . . . . . . . . . Garrison Access Hacks 5 | . . . . . 1 . . 3 . 1 Unlock Access 1 | . . . . . 1 . . . . . Seal Access 2 | . . . . . . . . 1 . 1 Coupler Status 2 | . . . . . . . . 2 . . Unauthorized Hacks . | . . . . . . . . . . . Terminals . | . . . . . . . . . . . Fabricators . | . . . . . . . . . . . Repair Stations . | . . . . . . . . . . . Recycling Units . | . . . . . . . . . . . Scanalyzers . | . . . . . . . . . . . Garrison Access . | . . . . . . . . . . . Data Cores Recovered 2 | . . . . . . . . 2 . . Used . | . . . . . . . . . . . Hacking Detections 16 | . 2 1 . . 2 . . 10 . 1 Full Trace Events 8 | . 1 . . . 1 . . 6 . . Feedback Events 2 | . 1 . . . . . . 1 . . Corruption 2 | . 1 . . . . . . 1 . . Feedback Blocked . | . . . . . . . . . . . Robot Schematics Acquired . | . . . . . . . . . . . Robots Built . | . . . . . . . . . . . Authchips . | . . . . . . . . . . . Time . | . . . . . . . . . . . Total Robot Build Rating . | . . . . . . . . . . . Part Schematics Acquired 1 | . . . . . . . . 1 . . Parts Built 4 | . . . . . . . . 4 . . Authchips . | . . . . . . . . . . . Time 446 | . . . . . . . . 446 . . Total Part Build Rating 16 | . . . . . . . . 16 . . Parts Repaired 1 | . . . . . . . . 1 . . Time 35 | . . . . . . . . 35 . . Parts Recycled . | . . . . . . . . . . . Recycled Matter . | . . . . . . . . . . . Retrieved Matter . | . . . . . . . . . . . Retrieved Components . | . . . . . . . . . . . Parts Scanalyzed . | . . . . . . . . . . . Part Schematics Acquired . | . . . . . . . . . . . Parts Damaged . | . . . . . . . . . . . Bothacking | -11 -10 -10 -10 -9 -8 -8 -8 -7 -7 -7 ------------ Run | Yrd Mat Min Exi Min Mat Gar Mat Fac Was Fac Used RIF Installer 1 | . . . . . . 1 . . . . Robots Hacked . | . . . . . . . . . . . Non-combat . | . . . . . . . . . . . Combat . | . . . . . . . . . . . Robot Hacks Applied . | . . . . . . . . . . . Relay Couplers Released 2 | . . . . . . . . 2 . . Machine Destruction 2 | . . . . . . . . 2 . . Attached 1 | . . . . . . . . . . 1 Fabnet Peak Effective % . | . . . . . . . . . . . Robots Rewired . | . . . . . . . . . . . Allies Hacked . | . . . . . . . . . . . Hacks Repelled . | . . . . . . . . . . . Allies | -11 -10 -10 -10 -9 -8 -8 -8 -7 -7 -7 -------- Run | Yrd Mat Min Exi Min Mat Gar Mat Fac Was Fac Total Allies 5 | . . 3 . 2 . . . . . . Largest Group 3 | . . 3 1 3 . . . . . . Highest-Rated Group 57 | . . 40 16 57 . . . . . . Highest-Rated Ally 31 | . . 16 16 31 . . . . . . Total Orders . | . . . . . . . . . . . Ally Attacks 20 | . . 13 . 7 . . . . . . Total Damage 176 | . . 105 . 71 . . . . . . Kills 3 | . . 3 . . . . . . . . Allies Corrupted . | . . . . . . . . . . . Allies Melted . | . . . . . . . . . . . Intel | -11 -10 -10 -10 -9 -8 -8 -8 -7 -7 -7 ------- Run | Yrd Mat Min Exi Min Mat Gar Mat Fac Was Fac Robot Analysis Total 4 | . 3 . . . 1 . . . . . Derelict Logs Recovered 1 | . . 1 . . . . . . . . Drone Launches . | . . . . . . . . . . . Drone Recoveries . | . . . . . . . . . . . Exploration | -11 -10 -10 -10 -9 -8 -8 -8 -7 -7 -7 ------------- Run | Yrd Mat Min Exi Min Mat Gar Mat Fac Was Fac Turns Passed 8004 | 99 578 997 1081 80 943 1141 368 1999 17 701 Spaces Moved 7951 | 61 290 586 672 22 451 641 205 3316 64 1643 Core 10 | 10 . . . . . . . . . . Treads 2366 | 51 290 586 672 10 292 199 . 266 . . Legs 856 | . . . . 12 159 442 205 38 . . Wheels . | . . . . . . . . . . . Hover . | . . . . . . . . . . . Flight 4719 | . . . . . . . . 3012 64 1643 Fastest Speed 14 | 50 160 160 160 160 120 120 120 14 26 14 Average Speed 76 | 141 160 160 160 214 151 131 127 37 26 26 Slowest Speed 260 | 160 160 160 160 260 260 158 190 260 26 97 Overloaded Moves 117 | . . . . . . . . 86 . 31 Propulsion Burnouts . | . . . . . . . . . . . Robots Hopped 1 | . . . . . . . . . . 1 Cave-ins Triggered . | . . . . . . . . . . . Exploration Rate (%) 47 | 4 54 98 91 5 35 62 19 62 62 34 Regions Visited 10 Branch Regions 3 Pre-discovered Areas 2 | . . . 1 1 . . . . . . Known Exits Taken 2 | . . . . . 1 . 1 . . . Unknown Exits Taken 5 | 1 1 1 1 1 . . . . . . Scrap Searched 1 | . . 1 . . . . . . . . Spaces Dug 35 | . . . . . . . 3 18 . 14 Terrain Destroyed 143 | . . . . . . . 3 18 . 122 Melee 35 | . . . . . . . 3 18 . 14 Projectile . | . . . . . . . . . . . AOE 108 | . . . . . . . . . . 108 Terrain Rammed . | . . . . . . . . . . . Walls Destroyed . | . . . . . . . . . . . Machines Disabled . | . . . . . . . . . . . Actions | -11 -10 -10 -10 -9 -8 -8 -8 -7 -7 -7 --------- Run | Yrd Mat Min Exi Min Mat Gar Mat Fac Was Fac Total 9313 | 74 348 626 674 43 652 813 273 3948 63 1799 Wait 743 | . 9 26 . 6 102 29 29 473 . 69 Move 7941 | 60 289 585 671 21 451 640 204 3316 63 1641 Hop 1 | . . . . . . . . . . 1 Pick Up 78 | 9 12 1 . . 19 15 4 15 . 3 Fast Attach 29 | . 2 . . . 4 3 2 13 . 5 Attach 45 | 5 1 . . 3 14 11 3 6 . 2 Detach 1 | . . . . . . . . 1 . . Swap 61 | . 3 1 . 1 9 14 4 22 . 7 Drop 59 | . 2 2 . . 11 10 1 28 . 5 Fire 96 | . 30 10 2 5 10 31 . . . 8 Melee 257 | . . . . 7 32 60 26 74 . 58 Ram . | . . . . . . . . . . . Kick . | . . . . . . . . . . . Crush 1 | . . 1 . . . . . . . . Escape Stasis . | . . . . . . . . . . . Rewire 1 | . . . 1 . . . . . . . Trap . | . . . . . . . . . . . Miscellaneous . | . . . . . . . . . . . Route ------- -11/Scrapyard -10/Materials (discovered 4 exits: [*Mat x2] / *Min x2) -10/Mines (discovered 3 exits: [*Mat x2] / *Exi) -10/Exiles (discovered 2 exits: [*Min x2]) -9/Mines -8/Materials (discovered 2 exits: *Fac / Gar) -8/Garrison (discovered 4 exits: *Mat x4) -8/Materials (discovered 3 exits: *Fac x3) -7/Factory (discovered 4 exits: [*Fac x2] / [*Low x2]) -7/Waste -7/Factory History --------- Turn | Location | Event 7 | -11/Scrapyard | Discovered new exit (range 15) 100 | -11/Scrapyard | Entered Materials 100 | -10/Materials | Discovered new exit (range 7) 261 | -10/Materials | Discovered new exit (range 8) 309 | -10/Materials | Build established: Mutant 488 | -10/Materials | Discovered new exit (range 5) 654 | -10/Materials | Discovered new exit (range 6) 678 | -10/Materials | Entered Mines 746 | -10/Mines | Met a Derelict bent on vengeance 780 | -10/Mines | Discovered new exit (range 5) 908 | -10/Mines | Learned location of 1 exit from Materials 924 | -10/Mines | Assisted by bots powering up and referring to "LRC-V3" 1031 | -10/Mines | Discovered new exit (range 11) 1376 | -10/Mines | A weapon hastily lodged in a ceiling crevice suddenly fell to the ground 1669 | -10/Mines | Deemed a non-threat by the Exiles lab entrance 1669 | -10/Mines | Discovered new exit (range 5) 1675 | -10/Mines | Entered Exiles 1675 | -10/Exiles | Found Exiles lab destroyed 1675 | -10/Exiles | Accompanied by 1 ally 1893 | -10/Exiles | Learned location of Zion (-7) 2542 | -10/Exiles | Discovered new exit (range 14) 2734 | -10/Exiles | Discovered new exit (range 15) 2756 | -10/Exiles | Entered Mines 2756 | -9/Mines | Accompanied by 1 ally 2770 | -9/Mines | Learned location of Storage (-9) 2777 | -9/Mines | Core integrity fell below 50% 2791 | -9/Mines | Discovered new exit (range 9) 2800 | -9/Mines | Core integrity fell below 20% 2814 | -9/Mines | Lost 4 parts (1p2n1w) 2836 | -9/Mines | Entered Materials 2836 | -8/Materials | Evolved 4 slots: Propulsion x2, Utility x2 2837 | -8/Materials | Identified exit to Factory 2945 | -8/Materials | Garrison activated, responded to threat 3004 | -8/Materials | Lost 3 parts (1n2w) 3301 | -8/Materials | Build established: Scavenger-Mutant 3616 | -8/Materials | Central database locked down 3779 | -8/Materials | Identified exit to Garrison 3779 | -8/Materials | Entered Garrison 3805 | -8/Garrison | Triggered checkpoint 4007 | -8/Garrison | Triggered checkpoint 4020 | -8/Garrison | Triggered checkpoint 4179 | -8/Garrison | Triggered checkpoint 4266 | -8/Garrison | Discovered new exit (range 13) 4277 | -8/Garrison | Triggered checkpoint 4291 | -8/Garrison | Core integrity fell below 50% 4322 | -8/Garrison | Discovered new exit (range 5) 4411 | -8/Garrison | Triggered checkpoint 4493 | -8/Garrison | Build established: Scavenger-Gladiator 4515 | -8/Garrison | Triggered checkpoint 4561 | -8/Garrison | Core integrity fell below 20% 4588 | -8/Garrison | Lost 8 parts (1p1n3u3w) 4667 | -8/Garrison | Triggered checkpoint 4737 | -8/Garrison | Discovered new exit (range 19) 4737 | -8/Garrison | Discovered new exit (range 56) 4737 | -8/Garrison | Discovered new exit (range 30) 4737 | -8/Garrison | Discovered new exit (range 49) 4906 | -8/Garrison | Installed Relay Interface Framework 4920 | -8/Garrison | Entered Materials 5109 | -8/Materials | Lost 3 parts (2n1u) 5288 | -8/Materials | Entered Factory 5288 | -7/Factory | Evolved 2 slots: Utility x2 5380 | -7/Factory | Lost 3 parts (1p2n) 5930 | -7/Factory | Discovered new exit (range 16) 5957 | -7/Factory | Discovered new exit (range 11) 6174 | -7/Factory | Build established: Hacker-Sprinter 6208 | -7/Factory | Discovered new exit (range 11) 6501 | -7/Factory | Fabricated Cld. VTOL Module? 6768 | -7/Factory | Discovered new exit (range 12) 6831 | -7/Factory | Fabricated Cld. VTOL Module? 6863 | -7/Factory | Fabricated Cld. VTOL Module? 6865 | -7/Factory | Fabricated Cld. VTOL Module? 7125 | -7/Factory | Repaired Cld. VTOL Module 7287 | -7/Factory | Sucked down chute 7287 | -7/Factory | Entered Waste 7287 | -7/Waste | The area was eerily silent 7301 | -7/Waste | Discovered new exit (range 11) 7304 | -7/Waste | Identified exit to Factory 7304 | -7/Waste | Entered Factory 7669 | -7/Factory | Core integrity fell below 50% 7874 | -7/Factory | Core integrity fell below 20% 8005 | -7/Factory | Destroyed by Y-54 Guardian with Flak Gun Last Messages --------------- 07878_ Acquired 5 matter. 07887_ System corrupted: Energy discharge (-93). 07933_ System corrupted: Matter fused (-6). 07954_ ALERT: Rogue bot located, Programmers report to Factory Zone 3L. 07972_ System corrupted: Matter fused (-8). 07980_ Acquired Salvage Targeting Computer. 07985_ W-25 Informer sends out distress signal. 07987_ Destroyed Imp. Hover Unit. 07991_ MK|EXJ%E#0,Z 7/3BPGFDXLUAPD4HMNALR 07992_ W-25 Informer destroyed. 07992_ Cld. VTOL Module destroyed. 07994_ Acquired 35 matter. 07998_ Great Axe destroyed. 08005_ Cld. VTOL Module destroyed. 08005_ Destroyed Cld. VTOL Module. 08005_ Enh. Nuclear Core destroyed. 08005_ Destroyed Enh. Nuclear Core. 08005_ Mni. Grenade Launcher destroyed. 08005_ Destroyed Mni. Grenade Launcher. Map ----- +----------------------------------------------------+ | ?????????????????????????????????# ???????? | | ?????????????????????????????????# #???????? | | ?????????????????????????????????# """ #???????? | | ?????????????????????????????????# """ #???####+ | | ?????????????????????????????????# """ #???# | | ?????????????????????????????????# ##### " | | ?????????????????????????????????# """ + """ | | ?????????????????????????????????# """ ##### """ | | ?????????????????????????????????# """ #???# | | ?????????????????????????????????# #???# " | | ?????????????????????????????????#" """ #???# """ | | ?????????????????????????????????#" """ #???# """ | | ?????????????????????????????????#" """ #???# | | ?????????????????????????????????#T #???####+ | | ?????????????????????????????????#" ! ######## | | ?????????????????????????????????#" ! | | ??????????????????#??????????????#" | | ???????????######## ############## | | ?????????? | | ?????????? ############## | | ?????????? r#????????????# | | ?????????? #????????????# | | ???????????########+##+## #????????????# ### | | ????????????????????????# #????????????# #?? | | ????????????????????????# #????????????# #?? | | ????????????????????????#@#????????????# #?? | | ??????????????????????? #???????????# #?? | | ????????????????????? | #??????????# #?? | | ??????????????????? ##??????????# #?? | | ??????????????????# #???????????# ### | | ??????????????????# #???????????# | | ??????????????????#"" ???????????# ### | | ??????????????????#"Y Y ???????????#########?? | | ??????????????????#"" ?????????????????????? | | ??????????????????# ????????????????????? | | ???????????????????### ######????????????????????? | | ?????????????????????##??????????????????????????? | | ?????????????????????????????????????????????????? | | ?????????????????????????????????????????????????? | | ?????????????????????????????????????????????????? | | ?????????????????????????????????????????????????? | | ?????????????????????????????????????????????????? | | ?????????????????????????????????????????????????? | | ?????????????????????????????????????????????????? | | ?????????????????????????????????????????????????? | | ?????????????????????????????????????????????????? | | ?????????????????????????????????????????????????? | | ?????????????????????????????????????????????????? | | ?????????????????????????????????????????????????? | | ?????????????????????????????????????????????????? | +----------------------------------------------------+ Best States ------------- Heat Dissipation 34 Energy Generation 17 Energy Capacity 300 Matter Stores 300 Matter Capacity 300 Sight Range 16 Terrain Scan Density 10 ECM Strength 1 Armor Coverage 300 Propulsion Shielding 66 Evasion (%) 72 Melee Accuracy 11 Core Analysis 6 Recoil Reduction 4 Salvage Targeting 1 Offensive Hacking 40 Defensive Hacking 10 Relay Coupler Types 1 Relay Coupler Value 17 Authchip Count 3 Item Schematics ----------------- Cld. VTOL Module | -7/Factory | Hacked Robot Schematics ------------------ None Fabricated ------------ Cld. VTOL Module | x1 | -7/Factory Cld. VTOL Module | x1 | -7/Factory Cld. VTOL Module | x1 | -7/Factory Cld. VTOL Module | x1 | -7/Factory Alien Tech Used ----------------- None Achievements -------------- Can't Catch Me Librarian Party Time Whoosh! Challenges ------------ None Game ------ Seed TractorDispersionFirepult Manual? 0 Play Time 02:07:30 Cumulative 27.1 hours Start 2024.11.23 @ 11:16:04 End 2024.11.23 @ 14:51:49 Sessions 3 Manual Loads 0 Difficulty Rogue Special Mode None Game No. 41 Rogue 41 Adventurer 0 Explorer 0 Win Type - Total 0 Types 0/0/0/0/0/0/0/0/0 Lore% 8 Gallery% 19 Achievement% 21 Wizard Run 0 Options --------- Layout 1 ASCII 0 Keyboard 0 Movement Mouse Keybinds 0 Fullscreen 2 Font 16/SmallcapsGlow Map View 55x38 Zoom Use 4% Tactical HUD 1 Map Filters NONE Filters NONE Steam 1 RUN: 3a748f16-52a4-4b28-9b54-a790cad51801